fUST/lending_fUST_20251203
["ID","MTS","AMOUNT","RATE_DAILY","PERIOD"]
[395763102,1764721840733,-500.0,0.000124,2]
[395763103,1764721840743,-500.0,0.000124,2]
[395763105,1764721840752,-1199.08,0.000124,2]
[395763107,1764721840761,-460.94039981,0.000124,2]
[395763109,1764721840771,-500.0,0.000124,2]
[395763111,1764721840780,-500.02,0.000124,2]
[395763113,1764721840791,-1711.69,0.000124,2]
[395763115,1764721840800,-377.60231813,0.000124,2]
[395763117,1764721840812,-1168.78,0.000124,2]
[395763119,1764721840821,-500.0,0.000124,2]
[395763121,1764721840831,-1652.67,0.000124,2]
[395763123,1764721840842,-500.0,0.000124,2]
[395763125,1764721840852,-500.0,0.000124,2]
[395763127,1764721840861,-500.0,0.000124,2]
[395763129,1764721840871,-500.0,0.000124,2]
[395763131,1764721840880,-500.0,0.000124,2]
[395763133,1764721840891,-990.01,0.000124,2]
[395763135,1764721840901,-3894.49,0.000124,2]
[395763137,1764721840911,-500.0,0.000124,2]
[395763139,1764721840921,-4053.96,0.000124,2]
[395763141,1764721840931,-516.11126996,0.00012401,2]
[395763142,1764721840941,-500.0,0.00012401,2]
[395763144,1764721840951,-500.0,0.00012401,2]
[395763146,1764721840960,-500.0,0.00012401,2]
[395763148,1764721840970,-500.0,0.00012401,2]
[395763151,1764721840980,-500.0,0.00012401,2]
[395763153,1764721840990,-500.0,0.00012401,2]
[395763154,1764721840999,-696.94,0.00012401,2]
[395763156,1764721841009,-199.60165312,0.00012401,2]
[395763158,1764721841018,-500.0,0.00012401,2]
[395763160,1764721841028,-500.0,0.00012401,2]
[395763162,1764721841037,-500.0,0.00012401,2]
[395763164,1764721841047,-231.56874513,0.00012401,2]
[395763166,1764721841056,-371.00995478,0.00012401,2]
[395763168,1764721841065,-500.0,0.00012401,2]
[395763170,1764721841075,-571.18045511,0.00012401,2]
[395763172,1764721841084,-500.0,0.00012401,2]
[395763174,1764721841093,-500.0,0.00012401,2]
[395763175,1764721841103,-469.36210003,0.00012401,2]
[395763178,1764721841113,-288.02829561,0.00012401,2]
[395763180,1764721841124,-500.0,0.00012401,2]
[395763181,1764721841133,-500.0,0.00012401,2]
[395763183,1764721841143,-500.0,0.00012401,2]
[395763185,1764721841151,-500.0,0.00012401,2]
[395763187,1764721841160,-359.63116314,0.00012401,2]
[395763189,1764721841170,-500.0,0.00012401,2]
[395763191,1764721841180,-500.0,0.00012401,2]
[395763193,1764721841190,-772.97,0.00012401,2]
[395763195,1764721841199,-500.0,0.00012401,2]
[395763197,1764721841208,-500.0,0.00012401,2]
[395763199,1764721841218,-500.0,0.00012401,2]
[395763201,1764721841229,-500.0,0.00012401,2]
[395763203,1764721841238,-500.0,0.00012401,2]
[395763205,1764721841247,-500.0,0.00012401,2]
[395763207,1764721841256,-604.34539577,0.00012401,2]
[395763209,1764721841266,-500.0,0.00012401,2]
[395763211,1764721841275,-500.0,0.00012401,2]
[395763213,1764721841284,-500.0,0.00012401,2]
[395763215,1764721841294,-500.0,0.00012401,2]
[395763217,1764721841303,-500.0,0.00012401,2]
[395763218,1764721841312,-500.0,0.00012401,2]
[395763220,1764721841322,-576.7,0.00012401,2]
[395763222,1764721841332,-500.0,0.00012401,2]
[395763224,1764721841341,-500.0,0.00012401,2]
[395763226,1764721841351,-500.0,0.00012401,2]
[395763228,1764721841360,-500.0,0.00012401,2]
[395763230,1764721841369,-213.85669607,0.00012401,2]
[395763232,1764721841378,-500.0,0.00012401,2]
[395763234,1764721841388,-500.0,0.00012401,2]
[395763236,1764721841397,-500.0,0.00012401,2]
[395763238,1764721841406,-500.0,0.00012401,2]
[395763240,1764721841415,-500.0,0.00012401,2]
[395763242,1764721841425,-500.0,0.00012401,2]
[395763244,1764721841435,-576.44,0.00012401,2]
[395763246,1764721841444,-500.0,0.00012401,2]
[395763248,1764721841453,-500.0,0.00012401,2]
[395763250,1764721841465,-500.0,0.00012401,2]
[395763252,1764721841474,-500.0,0.00012401,2]
[395763254,1764721841484,-711.99,0.00012401,2]
[395763256,1764721841495,-500.0,0.00012401,2]
[395763258,1764721841504,-985.23,0.00012401,2]
[395763260,1764721841513,-500.0,0.00012401,2]
[395763261,1764721841523,-500.0,0.00012401,2]
[395763263,1764721841534,-500.0,0.00012401,2]
[395763265,1764721841543,-500.0,0.00012401,2]
[395763267,1764721841553,-500.0,0.00012401,2]
[395763269,1764721841562,-500.0,0.00012401,2]
[395763271,1764721841571,-500.0,0.00012401,2]
[395763273,1764721841580,-500.0,0.00012401,2]
[395763275,1764721841589,-500.0,0.00012401,2]
[395763277,1764721841598,-500.0,0.00012401,2]
[395763279,1764721841607,-500.0,0.00012401,2]
[395763281,1764721841617,-500.0,0.00012401,2]
[395763283,1764721841626,-500.0,0.00012401,2]
[395763285,1764721841636,-574.55677583,0.00012401,2]
[395763287,1764721841645,-500.0,0.00012401,2]
[395763289,1764721841654,-382.1133158,0.00012401,2]
[395763291,1764721841663,-507.26535797,0.00012401,2]
[395763293,1764721841672,-500.0,0.00012401,2]
[395763295,1764721841681,-500.0,0.00012401,2]
[395763297,1764721841691,-500.0,0.00012401,2]
[395763299,1764721841701,-500.0,0.00012401,2]
[395763301,1764721841710,-500.0,0.00012401,2]
[395763303,1764721841719,-500.0,0.00012401,2]
[395763305,1764721841729,-500.0,0.00012401,2]
[395763307,1764721841737,-500.0,0.00012401,2]
[395763309,1764721841746,-500.0,0.00012401,2]
[395763311,1764721841755,-500.0,0.00012401,2]
[395763313,1764721841764,-500.0,0.00012401,2]
[395763315,1764721841774,-500.0,0.00012401,2]
[395763317,1764721841783,-500.0,0.00012401,2]
[395763318,1764721841792,-500.0,0.00012401,2]
[395763320,1764721841801,-500.0,0.00012401,2]
[395763321,1764721841810,-500.0,0.00012401,2]
[395763323,1764721841820,-500.0,0.00012401,2]
[395763325,1764721841829,-500.0,0.00012401,2]
[395763327,1764721841839,-500.0,0.00012401,2]
[395763329,1764721841848,-500.0,0.00012401,2]
[395763331,1764721841858,-874.1,0.00012401,2]
[395763333,1764721841868,-500.0,0.00012401,2]
[395763335,1764721841877,-500.0,0.00012401,2]
[395763337,1764721841887,-502.93580045,0.00012401,2]
[395763339,1764721841897,-500.0,0.00012401,2]
[395763341,1764721841907,-583.51530832,0.00012401,2]
[395763343,1764721841916,-500.0,0.00012401,2]
[395763345,1764721841925,-500.0,0.00012401,2]
[395763347,1764721841935,-669.26,0.00012401,2]
[395763349,1764721841945,-500.0,0.00012401,2]
[395763351,1764721841954,-500.0,0.00012401,2]
[395763353,1764721841963,-500.0,0.00012401,2]
[395763355,1764721841972,-500.0,0.00012401,2]
[395763356,1764721841982,-500.0,0.00012401,2]
[395763358,1764721841992,-500.0,0.00012401,2]
[395763360,1764721842001,-503.64937969,0.00012401,2]
[395763363,1764721842011,-500.0,0.00012401,2]
[395763365,1764721842021,-500.0,0.00012401,2]
[395763366,1764721842030,-500.0,0.00012401,2]
[395763368,1764721842040,-941.01,0.00012401,2]
[395763370,1764721842050,-1247.32,0.00012401,2]
[395763372,1764721842060,-500.0,0.00012401,2]
[395763374,1764721842069,-500.0,0.00012401,2]
[395763376,1764721842079,-563.2,0.00012401,2]
[395763378,1764721842088,-716.68,0.00012401,2]
[395763380,1764721842097,-500.0,0.00012401,2]
[395763382,1764721842106,-350.55148102,0.00012401,2]
[395763384,1764721842116,-681.85,0.00012401,2]
[395763386,1764721842125,-1134.19,0.00012401,2]
[395763388,1764721842135,-1309.73,0.00012401,2]
[395763390,1764721842144,-500.0,0.00012401,2]
[395763392,1764721842154,-1186.45,0.00012401,2]
[395763394,1764721842163,-500.0,0.00012401,2]
[395763396,1764721842172,-500.0,0.00012401,2]
[395763398,1764721842182,-683.53,0.00012401,2]
[395763400,1764721842192,-500.0,0.00012401,2]
[395763402,1764721842201,-500.0,0.00012401,2]
[395763404,1764721842210,-830.77,0.00012401,2]
[395763406,1764721842220,-500.0,0.00012401,2]
[395763408,1764721842229,-500.0,0.00012401,2]
[395763410,1764721842242,-510.236485,0.00012401,2]
[395763412,1764721842251,-518.60828072,0.00012401,2]
[395763414,1764721842260,-520.31,0.00012401,2]
[395763417,1764721842270,-500.0,0.00012401,2]
[395763419,1764721842279,-735.25,0.00012401,2]
[395763421,1764721842290,-500.0,0.00012401,2]
[395763423,1764721842299,-801.54,0.00012401,2]
[395763425,1764721842311,-1463.19,0.00012401,2]
[395763427,1764721842320,-583.08,0.00012401,2]
[395763429,1764721842330,-1398.91,0.00012401,2]
[395763432,1764721842339,-693.0,0.00012401,2]
[395763435,1764721842348,-500.0,0.00012401,2]
[395763437,1764721842357,-500.0,0.00012401,2]
[395763438,1764721842368,-500.0,0.00012401,2]
[395763440,1764721842378,-500.0,0.00012401,2]
[395763442,1764721842387,-500.0,0.00012401,2]
[395763444,1764721842396,-5396.03,0.00012401,2]
[395763446,1764721842405,-500.0,0.00012401,2]
[395763448,1764721842414,-500.0,0.00012401,2]
[395763450,1764721842423,-500.0,0.00012401,2]
[395763452,1764721842432,-500.0,0.00012401,2]
[395763454,1764721842444,-500.0,0.00012401,2]
[395763456,1764721842453,-500.0,0.00012401,2]
[395763458,1764721842462,-500.0,0.00012401,2]
[395763460,1764721842471,-4546.67,0.00012401,2]
[395763462,1764721842480,-500.0,0.00012401,2]
[395763464,1764721842490,-500.0,0.00012401,2]
[395763466,1764721842499,-500.0,0.00012401,2]
[395763468,1764721842509,-500.0,0.00012401,2]
[395763470,1764721842518,-582.61,0.00012401,2]
[395763472,1764721842528,-646.38,0.00012401,2]
[395763474,1764721842537,-500.0,0.00012401,2]
[395763476,1764721842546,-981.43,0.00012401,2]
[395763478,1764721842555,-500.0,0.00012401,2]
[395763479,1764721842564,-500.0,0.00012401,2]
[395763481,1764721842573,-500.0,0.00012401,2]
[395763483,1764721842583,-3050.61,0.00012401,2]
[395763485,1764721842592,-500.0,0.00012403,2]
[395763487,1764721842601,-500.0,0.00012403,2]
[395763489,1764721842610,-500.0,0.00012403,2]
[395763491,1764721842620,-500.0,0.00012403,2]
[395763493,1764721842629,-500.0,0.00012403,2]
[395763495,1764721842638,-1109.12,0.00012403,2]
[395763497,1764721842647,-500.0,0.00012403,2]
[395763499,1764721842657,-516.49,0.00012403,2]
[395763501,1764721842666,-500.0,0.00012403,2]
[395763503,1764721842675,-1036.61,0.00012403,2]
[395763505,1764721842684,-500.0,0.00012403,2]
[395763507,1764721842694,-865.21,0.00012403,2]
[395763509,1764721842703,-500.0,0.00012403,2]
[395763511,1764721842712,-500.0,0.00012403,2]
[395763512,1764721842722,-500.0,0.00012403,2]
[395763514,1764721842731,-171.39056253,0.00012403,2]
[395763517,1764721842740,-500.0,0.00012403,2]
[395763518,1764721842750,-607.25,0.00012403,2]
[395763520,1764721842761,-500.0,0.00012403,2]
[395763523,1764721842770,-500.0,0.00012403,2]
[395763524,1764721842781,-500.0,0.00012403,2]
[395763526,1764721842790,-500.0,0.00012403,2]
[395763528,1764721842800,-500.0,0.00012403,2]
[395763530,1764721842809,-500.0,0.00012403,2]
[395763532,1764721842821,-659.36,0.00012403,2]
[395763534,1764721842831,-500.0,0.00012403,2]
[395763536,1764721842841,-630.08827931,0.00012403,2]
[395763538,1764721842850,-500.0,0.00012403,2]
[395763540,1764721842861,-500.0,0.00012403,2]
[395763542,1764721842870,-500.0,0.00012403,2]
[395763544,1764721842879,-500.0,0.00012403,2]
[395763567,1764721843099,-500.0,0.00012403,2]
[395763569,1764721843109,-276.95535691,0.00012403,2]
[395763571,1764721843119,-500.0,0.00012403,2]
[395763573,1764721843128,-500.0,0.00012403,2]
[395763576,1764721843138,-909.93,0.00012403,2]
[395763579,1764721843147,-500.0,0.00012403,2]
[395763582,1764721843156,-500.0,0.00012403,2]
[395763584,1764721843165,-500.0,0.00012403,2]
[395763586,1764721843175,-500.0,0.00012403,2]
[395763587,1764721843183,-500.0,0.00012403,2]
[395763589,1764721843200,-500.0,0.00012403,2]
[395763591,1764721843218,-610.86,0.00012403,2]
[395763593,1764721843228,-500.0,0.00012403,2]
[395763595,1764721843238,-500.0,0.00012403,2]
[395763597,1764721843248,-500.0,0.00012403,2]
[395763599,1764721843257,-500.0,0.00012403,2]
[395763601,1764721843266,-1429.53,0.00012403,2]
[395763603,1764721843275,-500.0,0.00012403,2]
[395763605,1764721843285,-500.0,0.00012403,2]
[395763606,1764721843295,-510.47,0.00012403,2]
[395763608,1764721843304,-619.72,0.00012403,2]
[395763610,1764721843313,-500.0,0.00012403,2]
[395763612,1764721843323,-500.0,0.00012403,2]
[395763614,1764721843332,-500.0,0.00012403,2]
[395763616,1764721843341,-949.18,0.00012403,2]
[395763618,1764721843351,-500.0,0.00012403,2]
[395763620,1764721843360,-500.0,0.00012403,2]
[395763621,1764721843369,-500.0,0.00012403,2]
[395763622,1764721843378,-500.0,0.00012403,2]
[395763623,1764721843387,-500.0,0.00012403,2]
[395763624,1764721843395,-500.0,0.00012403,2]
[395763625,1764721843404,-720.88,0.00012403,2]
[395763626,1764721843413,-759.33,0.00012403,2]
[395763627,1764721843422,-779.58,0.00012403,2]
[395763628,1764721843431,-1000.0,0.00012403,2]
[395763629,1764721843440,-500.0,0.00012403,2]
[395763630,1764721843449,-500.0,0.00012403,2]
[395763631,1764721843458,-500.0,0.00012403,2]
[395763632,1764721843468,-500.0,0.00012403,2]
[395763633,1764721843477,-500.0,0.00012403,2]
[395763634,1764721843486,-500.0,0.00012403,2]
[395763635,1764721843495,-500.0,0.00012403,2]
[395763636,1764721843504,-500.0,0.00012403,2]
[395763637,1764721843513,-543.91879176,0.00012403,2]
[395763638,1764721843523,-628.83,0.00012403,2]
[395763639,1764721843532,-500.0,0.00012403,2]
[395763640,1764721843543,-500.0,0.00012403,2]
[395763641,1764721843552,-516.38502927,0.00012403,2]
[395763642,1764721843561,-500.0,0.00012403,2]
[395763643,1764721843570,-500.0,0.00012403,2]
[395763644,1764721843579,-500.0,0.00012403,2]
[395763645,1764721843589,-500.0,0.00012403,2]
[395763646,1764721843598,-522.82,0.00012403,2]
[395763647,1764721843607,-788.39,0.00012403,2]
[395763648,1764721843616,-500.0,0.00012403,2]
[395763649,1764721843625,-848.22,0.00012403,2]
[395763650,1764721843634,-1195.8,0.00012403,2]
[395763651,1764721843643,-500.0,0.00012403,2]
[395763652,1764721843652,-500.0,0.00012403,2]
[395763653,1764721843660,-500.0,0.00012403,2]
[395763654,1764721843670,-500.0,0.00012403,2]
[395763655,1764721843679,-500.0,0.00012403,2]
[395763656,1764721843687,-500.0,0.00012403,2]
[395763657,1764721843696,-500.0,0.00012403,2]
[395763658,1764721843705,-665.78,0.00012403,2]
[395763659,1764721843714,-635.30214521,0.00012403,2]
[395763660,1764721843723,-500.0,0.00012403,2]
[395763661,1764721843732,-500.0,0.00012403,2]
[395763662,1764721843741,-722.65,0.00012403,2]
[395763663,1764721843750,-928.23,0.00012403,2]
[395763664,1764721843759,-677.65,0.00012403,2]
[395763666,1764721843769,-933.64,0.00012403,2]
[395763668,1764721843779,-500.0,0.00012403,2]
[395763670,1764721843789,-500.0,0.00012403,2]
[395763672,1764721843798,-500.0,0.00012403,2]
[395763674,1764721843808,-500.0,0.00012403,2]
[395763676,1764721843817,-500.0,0.00012403,2]
[395763678,1764721843827,-569.66982012,0.00012403,2]
[395763680,1764721843836,-1863.7,0.00012403,2]
[395763682,1764721843846,-522.86,0.00012403,2]
[395763684,1764721843855,-1630.92,0.00012403,2]
[395763686,1764721843864,-500.0,0.00012403,2]
[395763688,1764721843874,-892.36,0.00012403,2]
[395763690,1764721843883,-500.0,0.00012403,2]
[395763692,1764721843893,-500.0,0.00012403,2]
[395763694,1764721843902,-661.6,0.00012403,2]
[395763696,1764721843911,-500.0,0.00012403,2]
[395763698,1764721843921,-500.0,0.00012403,2]
[395763700,1764721843930,-500.0,0.00012403,2]
[395763701,1764721843939,-833.11,0.00012403,2]
[395763703,1764721843948,-500.0,0.00012403,2]
[395763705,1764721843958,-500.0,0.00012403,2]
[395763707,1764721843967,-1146.45,0.00012403,2]
[395763709,1764721843977,-500.0,0.00012403,2]
[395763711,1764721843987,-500.0,0.00012403,2]
[395763713,1764721843996,-645.94,0.00012403,2]
[395763715,1764721844006,-500.0,0.00012403,2]
[395763717,1764721844016,-553.49779573,0.00012403,2]
[395763719,1764721844029,-741.22,0.00012403,2]
[395763720,1764721844039,-589.88,0.00012403,2]
[395763723,1764721844049,-500.0,0.00012403,2]
[395763725,1764721844058,-500.0,0.00012403,2]
[395763727,1764721844068,-500.0,0.00012403,2]
[395763728,1764721844077,-898.89,0.00012403,2]
[395763730,1764721844087,-734.43,0.00012403,2]
[395763732,1764721844097,-590.16,0.00012403,2]
[395763734,1764721844106,-639.77,0.00012403,2]
[395763736,1764721844116,-500.0,0.00012403,2]
[395763738,1764721844125,-1447.48,0.00012403,2]
[395763740,1764721844135,-500.0,0.00012403,2]
[395763742,1764721844145,-849.71,0.00012403,2]
[395763745,1764721844155,-500.0,0.00012403,2]
[395763747,1764721844164,-500.0,0.00012403,2]
[395763748,1764721844174,-500.0,0.00012403,2]
[395763751,1764721844184,-699.29,0.00012403,2]
[395763752,1764721844194,-500.0,0.00012403,2]
[395763754,1764721844203,-500.0,0.00012403,2]
[395763756,1764721844213,-675.86,0.00012403,2]
[395763758,1764721844222,-500.0,0.00012403,2]
[395763760,1764721844232,-579.66,0.00012403,2]
[395763762,1764721844241,-500.0,0.00012403,2]
[395763764,1764721844251,-1196.44,0.00012403,2]
[395763766,1764721844261,-1133.31,0.00012403,2]
[395763768,1764721844270,-500.0,0.00012403,2]
[395763770,1764721844280,-500.0,0.00012403,2]
[395763772,1764721844290,-723.26,0.00012403,2]
[395763774,1764721844300,-500.0,0.00012403,2]
[395763776,1764721844310,-500.0,0.00012403,2]
[395763778,1764721844319,-500.0,0.00012403,2]
[395763780,1764721844328,-500.0,0.00012403,2]
[395763781,1764721844337,-717.7,0.00012403,2]
[395763783,1764721844348,-500.0,0.00012403,2]
[395763785,1764721844357,-500.0,0.00012403,2]
[395763788,1764721844367,-626.48,0.00012403,2]
[395763790,1764721844376,-1919.74,0.00012403,2]
[395763791,1764721844386,-500.0,0.00012403,2]
[395763794,1764721844398,-500.0,0.00012403,2]
[395763796,1764721844407,-500.0,0.00012403,2]
[395763798,1764721844418,-500.0,0.00012403,2]
[395763800,1764721844427,-500.0,0.00012403,2]
[395763802,1764721844437,-595.63,0.00012403,2]
[395763804,1764721844448,-500.0,0.00012403,2]
[395763806,1764721844459,-500.0,0.00012403,2]
[395763808,1764721844469,-714.31,0.00012403,2]
[395763810,1764721844478,-500.0,0.00012403,2]
[395763811,1764721844488,-2318.82,0.00012403,2]
[395763813,1764721844499,-682.35,0.00012403,2]
[395763815,1764721844507,-500.0,0.00012403,2]
[395763817,1764721844517,-500.0,0.00012403,2]
[395763819,1764721844526,-500.0,0.00012403,2]
[395763821,1764721844536,-1720.71,0.00012403,2]
[395763823,1764721844547,-500.0,0.00012403,2]
[395763825,1764721844557,-500.0,0.00012403,2]
[395763828,1764721844568,-671.22,0.00012403,2]
[395763829,1764721844577,-690.55,0.00012403,2]
[395763831,1764721844587,-645.26,0.00012403,2]
[395763833,1764721844596,-500.0,0.00012403,2]
[395763835,1764721844605,-500.0,0.00012403,2]
[395763837,1764721844615,-534.43,0.00012403,2]
[395763839,1764721844624,-500.0,0.00012403,2]
[395763841,1764721844634,-1138.04,0.00012403,2]
[395763844,1764721844644,-564.74,0.00012403,2]
[395763846,1764721844654,-519.68,0.00012403,2]
[395763848,1764721844663,-565.52,0.00012403,2]
[395763849,1764721844672,-500.0,0.00012403,2]
[395763852,1764721844682,-782.71,0.00012403,2]
[395763854,1764721844692,-500.0,0.00012403,2]
[395763855,1764721844702,-500.0,0.00012403,2]
[395763858,1764721844712,-500.0,0.00012403,2]
[395763860,1764721844722,-500.0,0.00012403,2]
[395763861,1764721844731,-500.0,0.00012403,2]
[395763863,1764721844741,-1018.98,0.00012403,2]
[395763866,1764721844751,-500.0,0.00012403,2]
[395763868,1764721844761,-842.86,0.00012403,2]
[395763869,1764721844771,-500.0,0.00012403,2]
[395763871,1764721844780,-500.0,0.00012403,2]
[395763873,1764721844790,-500.0,0.00012403,2]
[395763875,1764721844800,-561.41,0.00012403,2]
[395763877,1764721844810,-717.63,0.00012403,2]
[395763879,1764721844823,-500.0,0.00012403,2]
[395763881,1764721844832,-500.0,0.00012403,2]
[395763883,1764721844841,-838.1,0.00012403,2]
[395763886,1764721844851,-1033.87,0.00012403,2]
[395763888,1764721844862,-500.0,0.00012403,2]
[395763890,1764721844872,-329.17498318,0.00012403,2]
[395763892,1764721844881,-500.0,0.00012403,2]
[395763894,1764721844891,-500.0,0.00012403,2]
[395763895,1764721844901,-535.72,0.00012403,2]
[395763897,1764721844911,-500.0,0.00012403,2]
[395763899,1764721844920,-335.97556762,0.00012403,2]
[395763901,1764721844930,-500.0,0.00012403,2]
[395763903,1764721844939,-886.22,0.00012403,2]
[395763905,1764721844949,-500.0,0.00012403,2]
[395763907,1764721844958,-500.0,0.00012403,2]
[395763909,1764721844968,-500.0,0.00012403,2]
[395763911,1764721844977,-500.0,0.00012403,2]
[395763913,1764721844987,-2120.53,0.00012403,2]
[395763916,1764721844996,-500.0,0.00012403,2]
[395763918,1764721845007,-500.0,0.00012403,2]
[395763920,1764721845017,-565.59360539,0.00012403,2]
[395763921,1764721845026,-758.33,0.00012403,2]
[395763923,1764721845035,-500.0,0.00012403,2]
[395763925,1764721845046,-500.0,0.00012403,2]
[395763927,1764721845056,-500.0,0.00012403,2]
[395763929,1764721845067,-560.41,0.00012403,2]
[395763931,1764721845077,-761.88,0.00012403,2]
[395763933,1764721845086,-500.0,0.00012403,2]
[395763935,1764721845095,-500.0,0.00012403,2]
[395763937,1764721845105,-568.61,0.00012403,2]
[395763939,1764721845114,-339.63707851,0.00012439,2]
[395763941,1764721845123,-339.63707851,0.00012576,2]
[395763943,1764721845133,-300.0,0.00012649,2]
[395763945,1764721845143,-300.0,0.00012649,2]
[395763947,1764721845152,-300.0,0.00012649,2]
[395763949,1764721845162,-300.0,0.00012649,2]
[395763951,1764721845171,-300.0,0.00012649,2]
[395763953,1764721845181,-300.0,0.00012649,2]
[395763955,1764721845191,-300.0,0.00012649,2]
[395763957,1764721845200,-300.0,0.00012649,2]
[395763959,1764721845210,-300.0,0.00012649,2]
[395763961,1764721845220,-300.0,0.00012649,2]
[395763963,1764721845229,-300.0,0.00012649,2]
[395763965,1764721845239,-300.0,0.00012649,2]
[395763967,1764721845249,-300.0,0.00012649,2]
[395763969,1764721845259,-300.0,0.00012649,2]
[395763971,1764721845268,-300.0,0.00012649,2]
[395763973,1764721845278,-600.0,0.0001265,2]
[395763975,1764721845288,-500.0,0.00012672,2]
[395763977,1764721845298,-3194.89,0.00012672,2]
[395763979,1764721845308,-1199.14,0.00012672,2]
[395763981,1764721845317,-788.94,0.00012672,2]
[395763983,1764721845327,-946.91,0.00012672,2]
[395763985,1764721845336,-500.0,0.00012672,2]
[395763987,1764721845345,-500.0,0.00012672,2]
[395763989,1764721845355,-6056.28,0.00012672,2]
[395763991,1764721845364,-4381.86,0.00012672,2]
[395763993,1764721845374,-4744.08,0.00012672,2]
[395763995,1764721845383,-500.0,0.00012672,2]
[395763997,1764721845392,-603.11,0.00012672,2]
[395763999,1764721845402,-500.0,0.00012672,2]
[395764001,1764721845411,-500.0,0.00012672,2]
[395764003,1764721845422,-1116.01,0.00012672,2]
[395764005,1764721845431,-511.67,0.00012672,2]
[395764007,1764721845442,-500.0,0.00012672,2]
[395764009,1764721845452,-500.0,0.00012672,2]
[395764011,1764721845462,-500.0,0.00012672,2]
[395764013,1764721845472,-767.54,0.00012672,2]
[395764015,1764721845481,-500.0,0.00012672,2]
[395764017,1764721845492,-500.0,0.00012672,2]
[395764019,1764721845501,-500.0,0.00012672,2]
[395764021,1764721845511,-1729.5,0.00012673,2]
[395764022,1764721845520,-1354.71,0.00012673,2]
[395764024,1764721845530,-500.0,0.00012673,2]
[395764026,1764721845540,-500.0,0.00012673,2]
[395764028,1764721845550,-1199.35,0.00012673,2]
[395764030,1764721845560,-1353.27,0.00012673,2]
[395764032,1764721845569,-779.11,0.00012673,2]
[395764034,1764721845579,-820.07,0.00012673,2]
[395764036,1764721845588,-2083.09,0.00012673,2]
[395764038,1764721845598,-3250.11,0.00012673,2]
[395764040,1764721845608,-507.99,0.00012673,2]
[395764042,1764721845618,-500.0,0.00012673,2]
[395764045,1764721845629,-500.0,0.00012673,2]
[395764047,1764721845639,-500.0,0.00012673,2]
[395764049,1764721845650,-908.16,0.00012673,2]
[395764051,1764721845661,-500.0,0.00012673,2]
[395764053,1764721845672,-500.0,0.00012673,2]
[395764055,1764721845683,-1217.46,0.00012673,2]
[395764056,1764721845694,-995.18,0.00012673,2]
[395764058,1764721845704,-3064.8,0.00012673,2]
[395764060,1764721845714,-1425.76,0.00012673,2]
[395764062,1764721845723,-1814.0,0.00012673,2]
[395764064,1764721845733,-500.0,0.00012673,2]
[395764066,1764721845742,-1913.91,0.00012673,2]